fUSD/lending_fUSD_20241110
["ID","MTS","AMOUNT","RATE_DAILY","PERIOD"]
[341913715,1731280264267,-607.76901682,0.00014993,2]
[341913716,1731280264276,-717.68,0.00014993,2]
[341913717,1731280264285,-596.59,0.00014993,2]
[341913718,1731280264294,-500.0,0.00014993,2]
[341913719,1731280264303,-936.04,0.00014993,2]
[341913720,1731280264313,-1001.76,0.00014993,2]
[341913721,1731280264322,-500.0,0.00014993,2]
[341913722,1731280264331,-643.75,0.00014993,2]
[341913723,1731280264341,-236.48725381,0.00014993,2]
[341913724,1731280264350,-500.0,0.00014993,2]
[341913725,1731280264362,-500.0,0.00014993,2]
[341913726,1731280264373,-500.0,0.00014993,2]
[341913727,1731280264382,-742.85,0.00014993,2]
[341913728,1731280264391,-678.76,0.00014993,2]
[341913729,1731280264402,-500.0,0.00014993,2]
[341913730,1731280264411,-500.0,0.00014993,2]
[341913731,1731280264420,-2869.42,0.00014993,2]
[341913732,1731280264429,-500.0,0.00014993,2]
[341913733,1731280264439,-500.0,0.00014993,2]
[341913734,1731280264448,-500.0,0.00014993,2]
[341913735,1731280264457,-500.0,0.00014993,2]
[341913736,1731280264466,-832.54,0.00014993,2]
[341913737,1731280264478,-4079.37,0.00014993,2]
[341913738,1731280264487,-450.86363387,0.00014993,2]
[341913739,1731280264497,-579.75,0.00014993,2]
[341913740,1731280264506,-500.0,0.00014993,2]
[341913741,1731280264515,-2806.16,0.00014993,2]
[341913742,1731280264524,-500.0,0.00014993,2]
[341913743,1731280264534,-500.0,0.00014993,2]
[341913744,1731280264543,-561.54,0.00014993,2]
[341913745,1731280264552,-500.0,0.00014993,2]
[341913746,1731280264562,-736.7,0.00014993,2]
[341913747,1731280264571,-788.7,0.00014993,2]
[341913748,1731280264580,-500.0,0.00014993,2]
[341913749,1731280264589,-994.63,0.00014993,2]
[341913750,1731280264599,-380.80568264,0.00014993,2]
[341913751,1731280264608,-500.0,0.00014993,2]
[341913752,1731280264618,-506.21674827,0.00014993,2]
[341913753,1731280264627,-500.0,0.00014993,2]
[341913754,1731280264637,-836.18,0.00014993,2]
[341913755,1731280264646,-1872.47,0.00014993,2]
[341913756,1731280264656,-500.0,0.00014993,2]
[341913757,1731280264665,-500.0,0.00014993,2]
[341913758,1731280264674,-1254.1,0.00014993,2]
[341913759,1731280264683,-500.0,0.00014993,2]
[341913760,1731280264693,-3399.68,0.00014993,2]
[341913761,1731280264702,-500.0,0.00014993,2]
[341913762,1731280264711,-1359.5,0.00014993,2]
[341913763,1731280264724,-500.0,0.00014993,2]
[341913764,1731280264734,-500.0,0.00014993,2]
[341913765,1731280264744,-500.0,0.00014993,2]
[341913766,1731280264753,-500.0,0.00014993,2]
[341913767,1731280264763,-159.74602832,0.00014993,2]
[341913768,1731280264773,-500.0,0.00014993,2]
[341913769,1731280264783,-623.64,0.00014993,2]
[341913770,1731280264792,-422.84415788,0.00014993,2]
[341913771,1731280264802,-538.37,0.00014993,2]
[341913772,1731280264812,-500.0,0.00014993,2]
[341913773,1731280264821,-500.0,0.00014993,2]
[341913774,1731280264831,-907.71,0.00014993,2]
[341913775,1731280264840,-500.0,0.00014993,2]
[341913776,1731280264849,-500.0,0.00014993,2]
[341913777,1731280265017,-500.0,0.00014993,2]
[341913778,1731280265027,-678.28,0.00014993,2]
[341913779,1731280265037,-500.0,0.00014993,2]
[341913780,1731280265047,-500.0,0.00014993,2]
[341913781,1731280265056,-500.0,0.00014993,2]
[341913782,1731280265066,-782.21,0.00014993,2]
[341913783,1731280265075,-500.0,0.00014993,2]
[341913784,1731280265085,-500.0,0.00014993,2]
[341913785,1731280265094,-506.75,0.00014993,2]
[341913786,1731280265103,-1385.43,0.00014993,2]
[341913787,1731280265112,-1011.61,0.00014993,2]
[341913788,1731280265121,-500.0,0.00014993,2]
[341913789,1731280265130,-500.0,0.00014993,2]
[341913790,1731280265139,-500.0,0.00014993,2]
[341913791,1731280265149,-1327.46,0.00014993,2]
[341913792,1731280265158,-2498.54,0.00014993,2]
[341913793,1731280265167,-1134.7,0.00014993,2]
[341913794,1731280265176,-2548.79,0.00014993,2]
[341913795,1731280265186,-301.71,0.00014993,2]
[341913796,1731280265195,-500.0,0.00014993,2]
[341913797,1731280265204,-270.49,0.00014993,2]
[341913798,1731280265213,-567.47,0.00014993,2]
[341913799,1731280265225,-528.71,0.00014993,2]
[341913800,1731280265235,-714.33,0.00014993,2]
[341913801,1731280265244,-500.0,0.00014993,2]
[341913802,1731280265254,-625.0,0.00014993,2]
[341913803,1731280265263,-500.0,0.00014993,2]
[341913804,1731280265272,-2669.86,0.00014993,2]
[341913805,1731280265281,-500.0,0.00014993,2]
[341913806,1731280265291,-500.0,0.00014993,2]
[341913807,1731280265299,-878.19,0.00014993,2]
[341913808,1731280265308,-544.09,0.00014993,2]
[341913809,1731280265318,-500.0,0.00014993,2]
[341913810,1731280265327,-500.0,0.00014993,2]
[341913811,1731280265336,-500.0,0.00014993,2]
[341913812,1731280265345,-500.0,0.00014993,2]
[341913813,1731280265359,-500.0,0.00014993,2]
[341913814,1731280265368,-500.0,0.00014993,2]
[341913815,1731280265378,-2171.13,0.00014993,2]
[341913816,1731280265387,-549.45,0.00014993,2]
[341913817,1731280265397,-500.0,0.00014993,2]
[341913818,1731280265406,-500.0,0.00014993,2]
[341913819,1731280265416,-500.0,0.00014993,2]
[341913820,1731280265425,-1275.79,0.00014993,2]
[341913821,1731280265435,-500.0,0.00014993,2]
[341913822,1731280265445,-500.0,0.00014993,2]
[341913823,1731280265455,-500.0,0.00014993,2]
[341913824,1731280265464,-500.0,0.00014993,2]
[341913825,1731280265475,-573.69,0.00014993,2]
[341913826,1731280265484,-500.0,0.00014993,2]
[341913827,1731280265493,-500.0,0.00014993,2]
[341913828,1731280265502,-1799.86,0.00014993,2]
[341913829,1731280265511,-4360.89,0.00014993,2]
[341913830,1731280265523,-1070.25,0.00014993,2]
[341913831,1731280265532,-960.63,0.00014993,2]
[341913832,1731280265542,-601.58,0.00014993,2]
[341913833,1731280265553,-12500.0,0.00014993,2]
[341913834,1731280265562,-500.0,0.00014993,2]
[341913835,1731280265572,-505.31,0.00014994,2]
[341913836,1731280265582,-505.31,0.00014994,2]
[341913837,1731280265591,-505.31,0.00014994,2]
[341913838,1731280265601,-505.31,0.00014994,2]
[341913839,1731280265612,-505.31,0.00014994,2]
[341913840,1731280265621,-505.31,0.00014994,2]
[341913841,1731280265630,-505.31,0.00014994,2]
[341913842,1731280265640,-505.31,0.00014994,2]
[341913843,1731280265651,-505.31,0.00014994,2]
[341913844,1731280265662,-2954.72,0.00014994,2]
[341913845,1731280265671,-2954.72,0.00014994,2]
[341913846,1731280265682,-2954.72,0.00014994,2]
[341913847,1731280265692,-2954.72,0.00014994,2]
[341913848,1731280265702,-2954.72,0.00014994,2]
[341913849,1731280265711,-2954.72,0.00014994,2]
[341913850,1731280265721,-2954.72,0.00014994,2]
[341913851,1731280265731,-2954.72,0.00014994,2]
[341913852,1731280265741,-2954.72,0.00014994,2]
[341913853,1731280265750,-2486.65,0.00014994,2]
[341913854,1731280265759,-2486.65,0.00014994,2]
[341913855,1731280265771,-2486.65,0.00014994,2]
[341913856,1731280265780,-2486.65,0.00014994,2]
[341913857,1731280265791,-2486.65,0.00014994,2]
[341913858,1731280265801,-2486.65,0.00014994,2]
[341913859,1731280265810,-2486.65,0.00014994,2]
[341913860,1731280265819,-2486.65,0.00014994,2]
[341913861,1731280265829,-2486.65,0.00014994,2]
[341913862,1731280265838,-1057.01,0.00014994,2]
[341913863,1731280265847,-1057.01,0.00014994,2]
[341913864,1731280265856,-1057.01,0.00014994,2]
[341913865,1731280265866,-1057.01,0.00014994,2]
[341913866,1731280265876,-1057.01,0.00014994,2]
[341913867,1731280265886,-1057.01,0.00014994,2]
[341913868,1731280265895,-1057.01,0.00014994,2]
[341913869,1731280265905,-1057.01,0.00014994,2]
[341913870,1731280265914,-1057.01,0.00014994,2]
[341913871,1731280265923,-1756.64,0.00014994,2]
[341913872,1731280265933,-1756.64,0.00014994,2]
[341913873,1731280265942,-1756.64,0.00014994,2]
[341913874,1731280265952,-1756.64,0.00014994,2]
[341913875,1731280265961,-1756.64,0.00014994,2]
[341913876,1731280265973,-1756.64,0.00014994,2]
[341913877,1731280265983,-1756.64,0.00014994,2]
[341913878,1731280265993,-1756.64,0.00014994,2]
[341913879,1731280266002,-1756.64,0.00014994,2]
[341913880,1731280266011,-762.99,0.00014994,2]
[341913881,1731280266020,-762.99,0.00014994,2]
[341913882,1731280266029,-762.99,0.00014994,2]
[341913883,1731280266039,-762.99,0.00014994,2]
[341913884,1731280266047,-762.99,0.00014994,2]
[341913885,1731280266056,-762.99,0.00014994,2]
[341913886,1731280266065,-762.99,0.00014994,2]
[341913887,1731280266074,-762.99,0.00014994,2]
[341913888,1731280266083,-762.99,0.00014994,2]
[341913889,1731280266093,-500.0,0.00014994,2]
[341913890,1731280266103,-500.0,0.00014994,2]
[341913891,1731280266113,-186.2239891,0.00014994,2]
[341913892,1731280266122,-836.18,0.00014997,2]
[341913893,1731280266131,-1359.5,0.00014997,2]
[341913894,1731280266140,-907.71,0.00014997,2]
[341913895,1731280266149,-678.28,0.00014997,2]
[341913896,1731280266159,-2548.79,0.00014997,2]
[341913897,1731280266168,-500.0,0.00014997,2]
[341913898,1731280266177,-544.09,0.00014997,2]
[341913899,1731280266186,-2171.13,0.00014997,2]
[341913900,1731280266195,-1275.79,0.00014997,2]
[341913901,1731280266205,-4360.89,0.00014997,2]
[341913902,1731280266214,-960.63,0.00014997,2]
[341913903,1731280266225,-601.58,0.00014997,2]
[341913904,1731280266235,-12500.0,0.00014997,2]
[341913905,1731280266244,-505.31,0.00014998,2]
[341913906,1731280266253,-505.31,0.00014998,2]
[341913907,1731280266262,-505.31,0.00014998,2]
[341913908,1731280266271,-505.31,0.00014998,2]
[341913909,1731280266280,-505.37574903,0.00014998,2]
[341913910,1731280266290,-2954.72,0.00014998,2]
[341913911,1731280266300,-2954.72,0.00014998,2]
[341913912,1731280266309,-2954.72,0.00014998,2]
[341913913,1731280266319,-2954.72,0.00014998,2]
[341913914,1731280266328,-2954.86329142,0.00014998,2]
[341913915,1731280266337,-2486.65,0.00014998,2]
[341913916,1731280266346,-2486.65,0.00014998,2]
[341913917,1731280266359,-2486.65,0.00014998,2]
[341913918,1731280266368,-2486.65,0.00014998,2]
[341913919,1731280266377,-2486.81952669,0.00014998,2]
[341913920,1731280266387,-1057.01,0.00014998,2]
[341913921,1731280266397,-1057.01,0.00014998,2]
[341913922,1731280266406,-1057.01,0.00014998,2]
[341913923,1731280266415,-1057.01,0.00014998,2]
[341913924,1731280266424,-1057.07,0.00014998,2]
[341913925,1731280266434,-515.21427596,0.00014998,2]
[341913926,1731280266444,-1756.64,0.00014998,2]
[341913927,1731280266453,-1756.64,0.00014998,2]
[341913928,1731280266462,-1756.64,0.00014998,2]
[341913929,1731280266474,-1756.64,0.00014998,2]
[341913930,1731280266483,-1756.70699068,0.00014998,2]
[341913931,1731280266492,-762.99,0.00014998,2]
[341913932,1731280266502,-560.00042829,0.00014998,2]
[341913933,1731280266516,-762.99,0.00014998,2]
[341913934,1731280266532,-762.99,0.00014998,2]
[341913935,1731280266545,-762.99,0.00014998,2]
[341913936,1731280266556,-763.12178197,0.00014998,2]
[341913937,1731280266571,-385.24943163,0.00014998,2]
[341913938,1731280266584,-1004.35,0.00014998,2]
[341913939,1731280266598,-1004.35,0.00014998,2]
[341913940,1731280266613,-500.0,0.00014998,2]
[341913941,1731280266625,-500.0,0.00014998,2]
[341913942,1731280266636,-2813.07,0.00014998,2]
[341913943,1731280266648,-2813.07,0.00014998,2]
[341913944,1731280266662,-500.0,0.00014998,2]
[341913945,1731280266675,-374.24,0.00014998,2]
[341913946,1731280266689,-500.0,0.00014998,2]
[341913947,1731280266703,-500.0,0.00014998,2]
[341913948,1731280266718,-2695.9,0.00014998,2]
[341913949,1731280266736,-2695.9,0.00014998,2]
[341913950,1731280266749,-500.0,0.00014998,2]
[341913951,1731280266762,-500.0,0.00014998,2]
[341913952,1731280266775,-559.32,0.00014998,2]
[341913953,1731280266791,-559.32,0.00014998,2]
[341913954,1731280266804,-3156.33,0.00014998,2]
[341913955,1731280266817,-500.0,0.00014998,2]
[341913956,1731280266828,-500.0,0.00014998,2]
[341913957,1731280266840,-3156.33,0.00014998,2]
[341913958,1731280266856,-500.0,0.00014998,2]
[341913959,1731280266868,-500.0,0.00014998,2]
[341913960,1731280266878,-850.56,0.00014998,2]
[341913961,1731280266890,-850.56,0.00014998,2]
[341913962,1731280266904,-500.0,0.00014998,2]
[341913963,1731280266917,-500.0,0.00014998,2]
[341913964,1731280266928,-2684.26,0.00014998,2]
[341913965,1731280266938,-2684.26,0.00014998,2]
[341913966,1731280266950,-3386.01,0.00014998,2]
[341913967,1731280266961,-3386.01,0.00014998,2]
[341913968,1731280266977,-500.0,0.00014998,2]
[341913969,1731280266988,-500.0,0.00014998,2]
[341913970,1731280266999,-500.0,0.00014998,2]
[341913971,1731280267011,-500.0,0.00014998,2]
[341913972,1731280267023,-500.0,0.00014998,2]
[341913973,1731280267035,-500.0,0.00014998,2]
[341913974,1731280267048,-500.0,0.00014998,2]
[341913975,1731280267060,-500.0,0.00014998,2]
[341913976,1731280267071,-500.0,0.00014998,2]
[341913977,1731280267083,-1166.02,0.00014998,2]
[341913978,1731280267095,-1166.02,0.00014998,2]
[341913979,1731280267106,-500.0,0.00014998,2]
[341913980,1731280267120,-500.0,0.00014998,2]
[341913981,1731280267131,-500.0,0.00014998,2]
[341913982,1731280267143,-500.0,0.00014998,2]
[341913983,1731280267155,-1278.73,0.00014998,2]
[341913984,1731280267167,-1278.73,0.00014998,2]
[341913985,1731280267179,-500.0,0.00014998,2]
[341913986,1731280267190,-500.0,0.00014998,2]
[341913987,1731280267202,-585.35,0.00014998,2]
[341913988,1731280267214,-585.35,0.00014998,2]
[341913989,1731280267227,-500.0,0.00014998,2]
[341913990,1731280267238,-500.0,0.00014998,2]
[341913991,1731280267250,-500.0,0.00014998,2]
[341913992,1731280267262,-500.0,0.00014998,2]
[341913993,1731280267273,-500.0,0.00014998,2]
[341913994,1731280267285,-500.0,0.00014998,2]
[341913995,1731280267296,-983.71,0.00014998,2]
[341913996,1731280267308,-983.71,0.00014998,2]
[341913997,1731280267319,-500.0,0.00014998,2]
[341913998,1731280267331,-500.0,0.00014998,2]
[341913999,1731280267342,-500.0,0.00014998,2]
[341914000,1731280267355,-500.0,0.00014998,2]
[341914001,1731280267366,-529.79,0.00014998,2]
[341914002,1731280267378,-529.79,0.00014998,2]
[341914003,1731280267388,-879.33,0.00014998,2]
[341914004,1731280267402,-879.33,0.00014998,2]
[341914005,1731280267414,-500.0,0.00014998,2]
[341914006,1731280267428,-500.0,0.00014998,2]
[341914007,1731280267440,-500.0,0.00014998,2]
[341914008,1731280267451,-500.0,0.00014998,2]
[341914009,1731280267463,-992.93,0.00014998,2]
[341914010,1731280267478,-992.93,0.00014998,2]
[341914011,1731280267490,-500.0,0.00014998,2]
[341914012,1731280267502,-500.0,0.00014998,2]
[341914013,1731280267514,-500.0,0.00014998,2]
[341914014,1731280267526,-500.0,0.00014998,2]
[341914015,1731280267538,-244.04,0.00014998,2]
[341914016,1731280267550,-1432.29,0.00014998,2]
[341914017,1731280267561,-1432.29,0.00014998,2]
[341914018,1731280267572,-500.0,0.00014998,2]
[341914019,1731280267584,-500.0,0.00014998,2]
[341914020,1731280267595,-500.0,0.00014998,2]
[341914021,1731280267607,-500.0,0.00014998,2]
[341914022,1731280267619,-1000.07,0.00014998,2]
[341914023,1731280267631,-1000.07,0.00014998,2]
[341914024,1731280267642,-791.25,0.00014998,2]
[341914025,1731280267655,-791.25,0.00014998,2]
[341914026,1731280267666,-717.68,0.00014998,2]
[341914027,1731280267678,-717.68,0.00014998,2]
[341914028,1731280267690,-596.59,0.00014998,2]
[341914029,1731280267702,-596.59,0.00014998,2]
[341914030,1731280267714,-500.0,0.00014998,2]
[341914031,1731280267728,-500.0,0.00014998,2]
[341914032,1731280267740,-936.04,0.00014998,2]
[341914033,1731280267750,-936.04,0.00014998,2]
[341914034,1731280267759,-1001.76,0.00014998,2]
[341914035,1731280267768,-1001.76,0.00014998,2]
[341914036,1731280267777,-95.35008787,0.00014998,2]
[341914037,1731280267933,-500.0,0.00014899,2]
[341914038,1731280267942,-88.76,0.00014993,2]
[341914039,1731280267953,-411.24,0.00014993,2]
[341914040,1731280267962,-500.0,0.00014997,2]
[341914041,1731280267974,-404.64991213,0.00014998,2]
[341914042,1731280267983,-618.2931024,0.00014998,2]
[341914043,1731280267992,-643.75,0.00014998,2]
[341914044,1731280268002,-643.75,0.00014998,2]
[341914045,1731280268011,-500.0,0.00014998,2]
[341914046,1731280268020,-500.0,0.00014998,2]
[341914047,1731280268029,-500.0,0.00014998,2]
[341914048,1731280268038,-500.0,0.00014998,2]
[341914049,1731280268048,-500.0,0.00014998,2]
[341914050,1731280268057,-500.0,0.00014998,2]
[341914051,1731280268066,-726.5573019,0.00014998,2]
[341914052,1731280268085,-16.2926981,0.00014998,2]
[341914053,1731280268094,-742.85,0.00014998,2]
[341914054,1731280268103,-678.76,0.00014998,2]
[341914055,1731280268113,-678.76,0.00014998,2]
[341914056,1731280268121,-430.83423045,0.00014998,2]
[341914057,1731280268728,-69.16576955,0.00014998,2]
[341914058,1731280268740,-500.0,0.00014998,2]
[341914059,1731280268749,-500.0,0.00014998,2]
[341914060,1731280268759,-500.0,0.00014998,2]
[341914061,1731280268768,-2869.42,0.00014998,2]
[341914062,1731280268778,-2869.42,0.00014998,2]
[341914063,1731280268786,-500.0,0.00014998,2]
[341914064,1731280268795,-500.0,0.00014998,2]
[341914065,1731280268805,-500.0,0.00014998,2]
[341914066,1731280268814,-500.0,0.00014998,2]
[341914067,1731280268823,-500.0,0.00014998,2]
[341914068,1731280268832,-500.0,0.00014998,2]
[341914069,1731280268842,-500.0,0.00014998,2]
[341914070,1731280268851,-500.0,0.00014998,2]
[341914071,1731280268860,-832.54,0.00014998,2]
[341914072,1731280268870,-832.54,0.00014998,2]
[341914073,1731280268879,-4079.37,0.00014998,2]
[341914074,1731280268888,-4079.37,0.00014998,2]
[341914075,1731280268897,-579.75,0.00014998,2]
[341914076,1731280268907,-579.75,0.00014998,2]
[341914077,1731280268916,-500.0,0.00014998,2]
[341914078,1731280268925,-500.0,0.00014998,2]
[341914079,1731280268934,-2806.16,0.00014998,2]
[341914080,1731280268943,-2806.16,0.00014998,2]
[341914081,1731280268951,-500.0,0.00014998,2]
[341914082,1731280268960,-500.0,0.00014998,2]
[341914083,1731280268969,-500.0,0.00014998,2]
[341914084,1731280268984,-500.0,0.00014998,2]
[341914085,1731280268993,-561.54,0.00014998,2]
[341914086,1731280269002,-561.54,0.00014998,2]
[341914087,1731280269011,-614.59037358,0.00014998,2]
[341914088,1731280269020,-736.7,0.00014998,2]
[341914089,1731280269029,-736.7,0.00014998,2]
[341914090,1731280269038,-788.7,0.00014998,2]
[341914091,1731280269047,-788.7,0.00014998,2]
[341914092,1731280269057,-500.0,0.00014998,2]
[341914093,1731280269065,-500.0,0.00014998,2]
[341914094,1731280269075,-994.63,0.00014998,2]
[341914095,1731280269084,-994.63,0.00014998,2]
[341914096,1731280269095,-500.0,0.00014998,2]
[341914097,1731280269104,-500.0,0.00014998,2]
[341914098,1731280269113,-559.23583029,0.00014998,2]
[341914099,1731280269122,-266.06027506,0.00014998,2]
[341914100,1731280269135,-570.11972494,0.00014998,2]
[341914101,1731280269145,-836.18,0.00014998,2]
[341914102,1731280269154,-836.18,0.00014998,2]
[341914103,1731280269163,-1872.47,0.00014998,2]
[341914104,1731280269172,-1872.47,0.00014998,2]
[341914105,1731280269181,-500.0,0.00014998,2]
[341914106,1731280269190,-500.0,0.00014998,2]
[341914107,1731280269198,-500.0,0.00014998,2]
[341914108,1731280269207,-503.74634053,0.00014998,2]
[341914109,1731280269216,-1254.1,0.00014998,2]
[341914110,1731280269228,-1254.1,0.00014998,2]
[341914111,1731280269236,-500.0,0.00014998,2]
[341914112,1731280269245,-500.0,0.00014998,2]
[341914113,1731280269254,-3399.68,0.00014998,2]
[341914114,1731280269263,-3399.68,0.00014998,2]
[341914115,1731280269271,-400.84986259,0.00014998,2]
[341914116,1731280269280,-500.0,0.00014998,2]
[341914117,1731280269289,-500.0,0.00014998,2]
[341914118,1731280269298,-1359.5,0.00014998,2]
[341914119,1731280269307,-1359.5,0.00014998,2]
[341914120,1731280269316,-1359.5,0.00014998,2]
[341914121,1731280269325,-500.0,0.00014998,2]
[341914122,1731280269334,-505.89599439,0.00014998,2]
[341914123,1731280269343,-500.0,0.00014998,2]
[341914124,1731280269354,-500.0,0.00014998,2]
[341914125,1731280269363,-500.0,0.00014998,2]
[341914126,1731280269372,-500.0,0.00014998,2]
[341914127,1731280269382,-500.0,0.00014998,2]
[341914128,1731280269391,-500.0,0.00014998,2]
[341914129,1731280269401,-623.64,0.00014998,2]
[341914130,1731280269410,-623.64,0.00014998,2]
[341914131,1731280269419,-538.37,0.00014998,2]
[341914132,1731280269430,-538.37,0.00014998,2]
[341914133,1731280269439,-500.0,0.00014998,2]
[341914134,1731280269448,-500.0,0.00014998,2]
[341914135,1731280269457,-500.0,0.00014998,2]
[341914136,1731280269466,-907.71,0.00014998,2]
[341914137,1731280269478,-907.71,0.00014998,2]
[341914138,1731280269487,-907.71,0.00014998,2]
[341914139,1731280269496,-500.0,0.00014998,2]
[341914140,1731280269505,-500.0,0.00014998,2]
[341914141,1731280269513,-500.0,0.00014998,2]
[341914142,1731280269522,-500.0,0.00014998,2]
[341914143,1731280269531,-500.0,0.00014998,2]
[341914144,1731280269540,-500.0,0.00014998,2]
[341914145,1731280269550,-500.0,0.00014998,2]
[341914146,1731280269558,-184.17069255,0.00014998,2]
[341914147,1731280269603,-494.10930745,0.00014998,2]
[341914148,1731280269612,-159.62405887,0.00014998,2]
[341914149,1731280269623,-340.37594113,0.00014998,2]
[341914150,1731280269632,-678.28,0.00014998,2]
[341914151,1731280269640,-592.48527921,0.00014998,2]
[341914152,1731280269793,-500.0,0.00013,2]
[341914153,1731280269802,-500.0,0.00014,2]
[341914154,1731280269811,-85.79472079,0.00014998,2]
[341914155,1731280269820,-500.0,0.00014998,2]
[341914156,1731280269829,-500.0,0.00014998,2]
[341914157,1731280269839,-500.0,0.00014998,2]
[341914158,1731280269848,-500.0,0.00014998,2]
[341914159,1731280269856,-500.0,0.00014998,2]
[341914160,1731280269866,-782.21,0.00014998,2]
[341914161,1731280269875,-500.0,0.00014998,2]
[341914162,1731280269884,-782.21,0.00014998,2]
[341914163,1731280269893,-500.0,0.00014998,2]
[341914164,1731280269903,-506.75,0.00014998,2]
[341914165,1731280269912,-500.0,0.00014998,2]
[341914166,1731280269922,-506.75,0.00014998,2]
[341914167,1731280269931,-1385.43,0.00014998,2]
[341914168,1731280269940,-857.73543304,0.00014998,2]
[341914169,1731280269952,-527.69456696,0.00014998,2]
[341914170,1731280269962,-1011.61,0.00014998,2]
[341914171,1731280269971,-1011.61,0.00014998,2]
[341914172,1731280269983,-500.0,0.00014998,2]
[341914173,1731280269993,-500.0,0.00014998,2]
[341914174,1731280270003,-500.0,0.00014998,2]
[341914175,1731280270012,-500.0,0.00014998,2]
[341914176,1731280270022,-500.0,0.00014998,2]
[341914177,1731280270032,-56.82350865,0.00014998,2]
[341914178,1731280270044,-443.17649135,0.00014998,2]
[341914179,1731280270054,-1327.46,0.00014998,2]
[341914180,1731280270063,-1327.46,0.00014998,2]
[341914181,1731280270072,-1484.08052956,0.00014998,2]
[341914182,1731280270083,-577.44137536,0.00014998,2]
[341914183,1731280270095,-437.01809508,0.00014998,2]
[341914184,1731280270104,-2498.54,0.00014998,2]
[341914185,1731280270113,-1134.7,0.00014998,2]
[341914186,1731280270123,-1134.7,0.00014998,2]
[341914187,1731280270132,-874.87560492,0.00014998,2]
[341914188,1731280270144,-1673.91439508,0.00014998,2]
[341914189,1731280270153,-310.28560502,0.00014998,2]
[341914190,1731280270164,-2238.50439498,0.00014998,2]
[341914191,1731280270174,-2548.79,0.00014998,2]
[341914192,1731280270183,-500.0,0.00014998,2]
[341914193,1731280270192,-500.0,0.00014998,2]
[341914194,1731280270201,-567.47,0.00014998,2]
[341914195,1731280270210,-567.47,0.00014998,2]
[341914196,1731280270219,-528.71,0.00014998,2]
[341914197,1731280270231,-528.71,0.00014998,2]
[341914198,1731280270241,-714.33,0.00014998,2]
[341914199,1731280270251,-714.33,0.00014998,2]
[341914200,1731280270260,-500.0,0.00014998,2]
[341914201,1731280270269,-500.0,0.00014998,2]
[341914202,1731280270278,-500.0,0.00014998,2]
[341914203,1731280270287,-500.0,0.00014998,2]
[341914204,1731280270296,-500.0,0.00014998,2]
[341914205,1731280270305,-500.0,0.00014998,2]
[341914206,1731280270314,-1485.77611794,0.00014998,2]
[341914207,1731280270326,-1184.08388206,0.00014998,2]
[341914208,1731280270335,-2669.86,0.00014998,2]
[341914209,1731280270344,-542.69760225,0.00014998,2]
[341914210,1731280270357,-346.72077565,0.00014998,2]
[341914211,1731280270366,-878.19,0.00014998,2]
[341914212,1731280270375,-878.19,0.00014998,2]
[341914213,1731280270385,-544.09,0.00014998,2]
[341914214,1731280270395,-544.09,0.00014998,2]